bitfinex/quotes_ETHUSD_20250430
["timestamp","ask_amount","ask_price","bid_price","bid_amount"]
[1746027080038,0.81350015,1765.4,1765.0,4.86]
[1746027080242,6.2490984,1765.1,1765.0,4.86]
[1746027080662,7.0249984,1765.1,1765.0,4.86]
[1746027080865,7.0249984,1765.1,1764.7,23.581]
[1746027081065,6.2490984,1764.9,1764.7,23.581]
[1746027081980,7.0249984,1765.1,1764.7,23.581]
[1746027082648,0.7759,1765.1,1764.7,18.721]
[1746027082873,0.8143,1764.8,1764.6,4.86]
[1746027083175,6.2490984,1764.7,1764.6,4.86]
[1746027083743,6.2490984,1764.7,1764.2,0.414]
[1746027084207,6.2490984,1764.5,1764.2,0.414]
[1746027084377,6.2490984,1764.5,1764.1,4.86]
[1746027084749,6.2490984,1764.5,1764.1,4.91667601]
[1746027084945,6.2490984,1764.5,1764.2,0.4916676]
[1746027085273,6.2490984,1764.7,1764.3,0.414]
[1746027086486,6.2490984,1764.7,1764.4,0.05667086]
[1746027086702,0.42334728,1764.8,1764.3,0.414]
[1746027086980,7.0584984,1765.2,1764.6,0.414]
[1746027087149,7.0584984,1765.4,1764.6,3.99815802]
[1746027087358,7.0584984,1765.4,1764.7,0.414]
[1746027087583,6.67288423,1765.4,1764.7,0.414]
[1746027087758,6.67288423,1765.4,1764.8,0.47065127]
[1746027088079,6.67288423,1765.4,1764.9,4.861]
[1746027088298,6.67288423,1765.4,1765.0,0.4861]
[1746027089246,6.2490984,1765.4,1765.1,0.414]
[1746027089440,6.2490984,1765.6,1765.1,0.414]
[1746027089752,6.2490984,1765.6,1765.1,0.47064283]
[1746027090281,6.2490984,1765.4,1765.1,0.414]
[1746027091918,6.2490984,1765.4,1765.0,0.4861]
[1746027092925,6.2490984,1765.6,1765.1,0.056645]
[1746027093108,6.2490984,1765.6,1765.2,0.414]
[1746027093816,1.18420792,1765.8,1765.2,0.414]
[1746027093817,7.43330632,1765.8,1765.3,0.05664274]
[1746027094026,6.67390632,1765.8,1765.3,0.70368623]
[1746027094324,6.67390632,1765.8,1765.3,5.56168623]
[1746027095119,6.2490984,1765.8,1765.3,5.56168623]
[1746027095296,6.2490984,1765.8,1765.4,0.414]
[1746027095509,6.2490984,1765.8,1765.4,1.01156862]
[1746027096397,6.67625432,1765.8,1765.4,1.01156862]
[1746027097603,6.2490984,1765.6,1765.3,4.858]
[1746027097804,6.2490984,1765.4,1765.2,11.028]
[1746027098017,6.2490984,1765.4,1765.1,0.414]
[1746027098185,6.2490984,1765.4,1765.1,5.272]
[1746027099019,6.2490984,1765.4,1765.1,4.858]
[1746027099424,7.0036984,1765.2,1765.0,4.858]
[1746027099660,0.05000015,1765.3,1764.7,6.584]
[1746027099661,0.05000015,1765.3,1764.8,0.414]
[1746027099867,6.2490984,1765.5,1764.9,0.964]
[1746027100042,6.2490984,1765.5,1765.0,0.05664189]
[1746027100353,6.2490984,1765.5,1764.9,0.414]
[1746027100354,6.2490984,1765.5,1764.9,0.964]
[1746027100750,6.2490984,1765.5,1765.0,0.05664192]
[1746027100962,6.2490984,1765.5,1764.9,0.964]
[1746027102867,6.2490984,1765.5,1764.9,7.134]
[1746027103078,6.2490984,1765.5,1765.0,0.7134]
[1746027103278,6.2490984,1765.5,1765.1,4.858]
[1746027103866,6.2490984,1765.5,1765.0,0.7134]
[1746027104064,6.2490984,1765.3,1765.0,4.858]
[1746027104381,6.66663048,1765.3,1765.0,4.858]
[1746027106999,6.2490984,1765.4,1765.0,4.858]
[1746027107299,3.7546,1765.7,1765.0,4.858]
[1746027107300,6.2490984,1765.6,1765.0,4.91464752]
[1746027107438,6.2490984,1765.6,1765.0,4.858]
[1746027108150,6.2490984,1765.6,1765.1,0.47064337]
[1746027108353,6.67625432,1765.8,1765.1,7.17350771]
[1746027109798,6.2490984,1766.0,1765.2,0.414]
[1746027109960,6.2490984,1766.0,1765.3,0.60662894]
[1746027110161,6.2490984,1766.4,1765.6,0.414]
[1746027110394,6.2490984,1766.4,1765.8,0.414]
[1746027110692,6.2490984,1766.4,1765.8,5.272]
[1746027110897,6.2490984,1766.4,1765.9,0.5272]
[1746027112752,6.2490984,1766.2,1765.8,5.272]
[1746027114615,0.7996,1766.6,1765.9,0.05662484]
[1746027114809,3.0,1766.4,1765.8,5.32861996]
[1746027115183,7.33342451,1766.6,1765.9,6.17]
[1746027115388,7.0486984,1766.6,1766.0,1.08761264]
[1746027115590,7.0486984,1766.6,1766.0,1.031]
[1746027117878,7.46933349,1766.6,1766.0,1.031]
[1746027119513,6.2490984,1766.4,1766.0,1.031]
[1746027120285,1.22023509,1766.6,1766.1,0.47061305]
[1746027120286,0.42063509,1766.6,1766.1,0.47061305]
[1746027120493,3.0,1766.7,1766.3,0.414]
[1746027120676,3.0,1766.7,1766.3,0.941]
[1746027121110,3.43276021,1766.7,1766.3,0.941]
[1746027121819,6.2490984,1766.6,1766.3,0.941]
[1746027122317,7.0278984,1767.5,1766.7,0.55]
[1746027122484,6.2490984,1767.5,1766.8,11.08258384]
[1746027122818,7.0278984,1767.7,1767.0,0.414]
[1746027122981,7.0278984,1767.7,1767.0,0.47058069]
[1746027123187,7.0278984,1767.7,1767.0,0.414]
[1746027123387,6.2490984,1767.5,1767.0,0.414]
[1746027124033,6.2490984,1767.1,1766.8,4.854]
[1746027124384,6.2490984,1767.3,1766.8,4.854]
[1746027124816,0.4157425,1767.4,1766.9,0.414]
[1746027125021,7.0370984,1767.6,1767.0,0.05658231]
[1746027125194,6.2490984,1767.6,1767.1,0.414]
[1746027127826,6.67090349,1767.6,1767.1,0.414]
[1746027128623,6.2490984,1767.8,1767.3,0.414]
[1746027128823,6.2490984,1768.0,1767.4,0.05657428]
[1746027129013,0.43477521,1768.1,1767.5,0.414]
[1746027129216,6.2490984,1768.2,1767.6,4.90956001]
[1746027129463,6.2490984,1768.2,1767.7,0.414]
[1746027129957,6.2490984,1768.0,1767.7,0.414]
[1746027130451,6.2490984,1768.0,1767.7,0.9407]
[1746027130654,6.2490984,1768.2,1767.7,0.9407]
[1746027130856,6.2490984,1768.2,1767.7,0.99726593]
[1746027131261,0.4086531,1768.5,1767.8,0.414]
[1746027131425,0.4086531,1768.5,1768.1,0.414]
[1746027131633,0.4086531,1768.5,1768.3,0.414]
[1746027131853,0.4086531,1768.5,1768.4,0.0565374]
[1746027132062,0.4086531,1768.5,1768.3,6.584]
[1746027132229,0.4086531,1768.5,1768.3,6.17]
[1746027132436,0.4086531,1768.5,1768.4,0.414]
[1746027132747,0.4086531,1768.5,1768.4,1.07805332]
[1746027134671,0.4086531,1768.5,1768.4,10.24805332]
[1746027134973,0.4086531,1768.5,1768.4,7.24805332]
[1746027135679,0.4086531,1768.5,1768.4,6.584]
[1746027136039,0.4086531,1768.5,1768.4,11.021]
[1746027138137,0.4086531,1768.5,1768.4,4.851]
[1746027139371,0.4086531,1768.5,1768.4,5.265]
[1746027142743,0.4086531,1768.5,1768.4,5.815]
[1746027142943,0.4086531,1768.5,1768.4,6.3965]
[1746027143145,0.4086531,1768.5,1768.4,5.8465]
[1746027144180,0.4086531,1768.5,1768.4,5.4325]
[1746027144486,0.4086531,1768.5,1768.4,4.851]
[1746027144643,0.4086531,1768.5,1768.4,8.815]
[1746027144844,7.0722984,1769.7,1768.9,0.414]
[1746027145046,7.0669984,1769.9,1769.1,0.414]
[1746027145274,7.0669984,1769.9,1769.2,0.05651094]
[1746027145779,7.0669984,1769.3,1768.7,5.263]
[1746027147343,6.2490984,1769.1,1768.7,5.263]
[1746027148275,7.0669984,1769.3,1768.7,5.3195304]
[1746027148450,7.0669984,1769.3,1768.7,5.263]
[1746027149069,6.2490984,1769.1,1768.7,5.263]
[1746027149785,6.2490984,1769.1,1768.7,4.849]
[1746027150158,6.2490984,1768.9,1768.4,0.414]
[1746027150361,7.0120984,1768.9,1768.7,4.848]
[1746027150859,7.0120984,1768.9,1768.4,4.848]
[1746027151063,6.2490984,1768.6,1768.4,4.848]
[1746027151390,6.2490984,1768.6,1768.5,6.3]
[1746027151597,0.763,1768.9,1768.5,6.714]
[1746027153883,6.2490984,1768.6,1767.9,6.584]
[1746027154042,6.2490984,1768.4,1768.0,4.914]
[1746027154248,6.2490984,1768.2,1768.0,4.914]
[1746027156446,0.8286,1768.1,1767.8,23.611]
[1746027156650,0.8286,1768.1,1767.4,0.414]
[1746027156651,6.2490984,1767.9,1767.5,4.914]
[1746027159507,6.2490984,1767.7,1767.5,4.914]
[1746027159882,6.87900825,1767.7,1767.2,4.914]
[1746027160090,6.2490984,1767.5,1767.2,4.914]
[1746027160394,6.2490984,1767.3,1767.0,4.915]
[1746027160911,6.2490984,1767.3,1767.1,6.3]
[1746027161207,7.0015984,1767.5,1767.1,6.3]
[1746027161508,7.43098089,1767.5,1767.0,4.915]
[1746027161806,7.43098089,1767.5,1767.0,11.215]
[1746027162212,6.2490984,1767.1,1767.0,4.915]
[1746027162377,6.2490984,1767.1,1766.7,4.915]
[1746027162579,6.2490984,1767.3,1766.8,6.7915]
[1746027163508,0.7949,1767.4,1766.8,6.7915]
[1746027163701,3.7949,1767.4,1766.9,0.414]
[1746027163895,0.7949,1767.4,1766.9,0.414]
[1746027164073,0.8323,1767.6,1767.0,0.05658089]
[1746027164276,4.916,1767.8,1767.1,6.714]
[1746027164501,3.0,1767.8,1767.2,4.916]
[1746027164816,7.0813984,1767.9,1767.2,4.916]
[1746027164817,6.2490984,1767.7,1767.2,4.916]
[1746027164972,6.67833062,1767.7,1767.2,4.916]
[1746027165179,6.67833062,1767.7,1767.3,6.7916]
[1746027165388,6.2490984,1767.5,1767.2,4.916]
[1746027165578,7.0760984,1767.5,1767.2,4.916]
[1746027165998,7.0760984,1767.5,1767.2,11.216]
[1746027166506,7.0760984,1767.5,1767.2,4.916]
[1746027167514,6.2490984,1767.3,1766.8,4.916]
[1746027167682,6.2490984,1767.1,1766.8,5.449]
[1746027167887,0.827,1767.5,1766.8,11.80559437]
[1746027167888,6.2490984,1767.3,1766.8,11.80559437]
[1746027168195,7.0760984,1767.5,1766.8,11.749]
[1746027168511,7.0760984,1767.5,1766.8,17.919]
[1746027168685,7.0760984,1767.5,1767.0,0.414]
[1746027169309,7.0760984,1767.5,1767.1,6.3]
[1746027169512,7.0760984,1767.5,1767.1,6.9714]
[1746027170315,7.43324242,1768.0,1767.3,0.414]
[1746027170480,7.0073984,1768.0,1767.3,0.414]
[1746027170878,7.0073984,1768.0,1767.4,6.3]
[1746027171378,7.0073984,1768.0,1767.5,0.0565716]
[1746027171683,7.0073984,1768.0,1767.5,0.63716199]
[1746027171881,7.0073984,1768.0,1767.5,0.0565716]
[1746027172221,7.0073984,1768.0,1767.6,6.3]
[1746027173933,6.2490984,1768.2,1767.7,0.414]
[1746027174083,0.42116676,1768.1,1767.7,0.414]
[1746027174402,3.8181,1768.3,1767.7,1.0854]
[1746027174403,6.2490984,1768.0,1767.7,1.0854]
[1746027175291,6.2490984,1768.2,1767.7,1.0854]
[1746027177024,6.67766618,1768.2,1767.7,1.0854]
[1746027177924,6.67766618,1768.2,1767.7,0.414]
[1746027178233,6.2490984,1768.0,1767.7,6.714]
[1746027178529,6.2490984,1767.8,1767.5,0.414]
[1746027178690,6.2490984,1767.8,1767.3,4.916]
[1746027178991,6.67834624,1767.8,1767.2,5.3865756]
[1746027179805,6.67834624,1767.8,1767.2,5.33]
[1746027180019,6.67834624,1767.8,1767.3,6.3]
[1746027181217,7.0009984,1767.6,1767.2,4.916]
[1746027181424,6.2490984,1767.6,1767.2,5.449]
[1746027181620,6.2490984,1767.6,1767.2,11.749]
[1746027183223,6.2490984,1767.6,1767.2,11.216]
[1746027183429,6.2490984,1767.4,1767.2,4.916]
[1746027183653,7.0095984,1767.4,1766.9,4.916]
[1746027183947,6.2490984,1767.2,1766.9,4.916]
[1746027185046,6.66627511,1767.2,1766.6,11.505]
[1746027185205,6.66627511,1767.2,1766.6,5.335]
[1746027185206,6.2490984,1767.0,1766.6,5.335]
[1746027185406,6.2490984,1766.8,1766.4,0.414]
[1746027185606,6.2490984,1766.6,1766.3,4.921]
[1746027185901,7.42645861,1766.8,1766.3,4.97760947]
[1746027186108,7.42645861,1766.8,1766.4,0.49776095]
[1746027186335,6.66775861,1766.8,1766.4,0.49776095]
[1746027187314,0.828,1766.7,1766.2,6.584]
[1746027187514,0.828,1766.7,1766.3,0.05661069]
[1746027187732,6.66775861,1766.8,1766.3,0.05660893]
[1746027187941,6.2490984,1767.0,1766.4,0.414]
[1746027188145,6.2490984,1766.8,1766.4,0.05659954]
[1746027188346,7.0442984,1766.8,1766.2,6.584]
[1746027188519,6.2490984,1766.6,1766.2,6.584]
[1746027189434,6.2490984,1766.6,1766.2,0.414]
[1746027189649,6.2490984,1766.4,1766.0,5.336]
[1746027189831,6.66499503,1766.4,1766.0,5.8696]
[1746027190852,7.0079984,1766.6,1766.1,0.05661897]
[1746027191054,7.0079984,1766.6,1766.0,5.92621175]
[1746027191261,7.0079984,1766.6,1766.0,5.8696]
[1746027192143,6.2490984,1766.4,1766.0,5.8696]
[1746027192844,7.0079984,1766.6,1766.1,0.64357747]
[1746027193022,7.42980483,1766.6,1766.1,0.64357747]
[1746027194143,7.0332984,1766.8,1766.2,0.414]
[1746027194832,7.0332984,1766.8,1766.3,0.05660654]
[1746027195038,6.2490984,1766.8,1766.3,0.05660654]
[1746027195362,0.28167919,1767.5,1766.5,0.414]
[1746027195668,4.924,1768.1,1766.7,3.0]
[1746027195669,5.7082,1768.1,1766.7,3.0]
[1746027195873,6.2490984,1768.2,1767.2,0.55]
[1746027196043,6.2490984,1768.2,1767.4,0.414]
[1746027196226,6.2490984,1768.2,1767.5,0.05656617]
[1746027196622,6.66865769,1768.2,1767.6,0.414]
[1746027196860,0.66686577,1768.1,1767.6,0.414]
[1746027197962,6.2490984,1768.0,1767.6,0.414]
[1746027199044,7.0022984,1768.0,1767.4,0.414]
[1746027199243,7.0022984,1768.0,1767.4,5.337]
[1746027199547,0.7532,1768.0,1767.4,5.337]
[1746027199742,0.7532,1768.0,1767.5,0.5337]
[1746027199923,6.23438039,1768.1,1767.6,4.923]
[1746027201281,4.47685862,1768.3,1767.6,4.923]
[1746027201636,0.814,1769.0,1767.9,0.55]
[1746027201826,0.814,1769.2,1768.2,0.414]
[1746027202034,6.23438039,1769.3,1768.3,0.47053505]
[1746027202333,0.4923,1769.4,1768.3,0.47053505]
[1746027202334,3.4923,1769.4,1768.5,3.414]
[1746027202556,3.4923,1769.4,1768.6,0.05652947]
[1746027203086,7.01138039,1769.9,1768.8,0.414]
[1746027203386,1.32488279,1770.6,1769.1,0.414]
[1746027203529,6.28438054,1770.1,1769.1,0.414]
[1746027203731,6.28438054,1770.1,1769.2,4.922]
[1746027203732,3.7926,1770.0,1769.2,4.922]
[1746027203974,0.7926,1770.0,1769.2,4.922]
[1746027204268,3.7926,1770.0,1769.2,5.51211283]
[1746027204447,0.7926,1770.0,1769.2,5.4556]
[1746027204649,3.7926,1770.0,1769.3,0.05651377]
[1746027204849,6.23438039,1770.1,1769.2,5.51211377]
[1746027205059,0.4086531,1770.2,1769.3,0.414]
[1746027205258,0.4086531,1770.2,1769.5,0.414]
[1746027205470,0.4086531,1770.2,1769.6,4.97649839]
[1746027206075,0.4086531,1770.2,1769.6,4.97649891]
[1746027206247,3.4086531,1770.2,1769.6,4.97649891]
[1746027208071,3.4086531,1770.2,1769.6,4.92]
[1746027208288,3.4086531,1770.2,1769.6,5.4534]
[1746027208584,7.01308039,1770.0,1768.8,0.414]
[1746027208758,6.23438039,1769.7,1768.8,5.333]
[1746027208965,6.28438054,1769.7,1768.8,5.38951905]
[1746027209133,6.23438039,1769.7,1768.8,5.38951905]
[1746027209341,3.05000015,1769.6,1768.9,0.53895191]
[1746027209773,7.16281844,1769.7,1769.0,0.05652611]
[1746027210089,6.23438039,1769.7,1769.0,0.05652611]
[1746027210447,6.23438039,1769.7,1768.9,0.53895191]
[1746027210760,3.0,1769.6,1768.9,0.53895191]
[1746027210967,0.05000015,1769.5,1769.0,4.919]
[1746027211135,3.0,1769.6,1769.0,4.919]
[1746027211342,7.01308039,1770.0,1769.1,0.47051878]
[1746027211542,7.71438843,1770.0,1769.1,1.00947066]
[1746027211738,8.1485527,1770.0,1769.1,1.00947066]
[1746027211945,7.3698527,1770.0,1769.1,1.00947066]
[1746027212386,3.0,1770.1,1769.2,0.414]
[1746027213117,3.0,1770.1,1769.3,0.05650473]
[1746027213425,3.0,1770.1,1769.4,4.918]
[1746027213587,6.23438039,1769.9,1769.4,4.918]
[1746027214319,3.0,1769.8,1769.4,4.918]
[1746027215929,3.92343804,1769.8,1769.4,4.918]
[1746027216101,4.74973804,1769.8,1769.4,4.918]
[1746027216445,3.0,1769.8,1769.4,4.918]
[1746027216630,6.23438039,1769.9,1769.4,4.918]
[1746027219229,3.0,1770.1,1769.4,4.918]
[1746027219230,0.4086531,1770.2,1769.5,0.47051264]
[1746027219439,0.4086531,1770.2,1769.5,0.414]
[1746027220252,6.23438039,1770.1,1769.5,0.414]
[1746027220627,6.6601264,1770.1,1769.5,0.414]
[1746027221507,6.23438039,1769.8,1769.5,0.414]
[1746027221714,6.23438039,1769.8,1769.4,4.918]
[1746027222123,6.23438039,1769.8,1769.3,0.414]
[1746027222623,11.30538039,1770.0,1769.3,0.414]
[1746027222802,1.13053804,1769.9,1769.3,0.9625]
[1746027224328,1.18053819,1769.9,1769.3,0.414]
[1746027224627,6.23438039,1769.7,1769.3,0.414]
[1746027225129,9.23438039,1769.9,1769.3,0.414]
[1746027225295,5.071,1770.0,1769.3,0.414]
[1746027225497,3.42574601,1770.1,1769.3,0.47050787]
[1746027225717,6.64303349,1770.2,1769.4,0.414]
[1746027226002,6.64303349,1770.2,1769.6,0.414]
[1746027226329,7.11875981,1770.2,1769.6,0.414]
[1746027226509,7.06875966,1770.2,1769.6,0.414]
[1746027226834,8.28273563,1770.2,1769.6,0.414]
[1746027227131,6.23438039,1769.9,1769.4,6.584]
[1746027229802,3.0,1770.1,1769.4,6.584]
[1746027230617,0.31647855,1770.0,1769.4,6.584]
[1746027230819,0.31647855,1770.0,1769.5,0.05650751]
[1746027231024,0.31647855,1770.0,1769.5,0.72055826]
[1746027231240,0.31647855,1770.0,1769.5,0.66405075]
[1746027231425,7.11875981,1770.2,1769.5,0.66405075]
[1746027231621,7.06875966,1770.2,1769.5,0.66405075]
[1746027231942,0.36741181,1770.1,1769.5,0.66405075]
[1746027232147,1.06102881,1770.1,1769.5,0.66405075]
[1746027232514,6.23438039,1769.9,1769.4,6.584]
[1746027232910,0.31741166,1769.8,1769.4,6.584]
[1746027233110,0.31741166,1769.8,1769.4,0.414]
[1746027233421,0.31741166,1769.8,1769.2,5.071]
[1746027233422,6.23438039,1769.6,1769.2,0.414]
[1746027233742,0.42895362,1769.7,1769.2,0.47052134]
[1746027234041,0.31741166,1769.6,1769.2,0.414]
[1746027234945,0.31741166,1769.5,1769.2,0.414]
[1746027235811,0.31741166,1769.7,1769.2,0.414]
[1746027236648,0.31741166,1769.6,1769.2,0.414]
[1746027237336,0.31741166,1769.7,1769.2,0.414]
[1746027237851,0.31741166,1769.6,1769.2,0.414]
[1746027238067,0.31741166,1769.6,1769.2,1.07805159]
[1746027238715,0.31741166,1769.5,1769.2,1.07805159]
[1746027238915,0.31741166,1769.5,1769.2,0.414]
[1746027239815,0.31741166,1769.4,1769.2,0.414]
[1746027240450,0.31741166,1769.3,1769.0,5.485]
[1746027240854,6.28438054,1769.2,1768.2,0.414]
[1746027241071,6.23438039,1768.9,1768.3,0.414]
[1746027241526,0.31741166,1768.8,1768.3,0.414]
[1746027243049,0.42016544,1768.8,1768.3,0.414]
[1746027243344,6.51598064,1768.9,1768.3,0.414]
[1746027243543,7.21757885,1768.9,1768.3,1.00759039]
[1746027243745,3.0,1768.8,1768.3,0.414]
[1746027244259,0.31691031,1768.7,1768.3,0.414]
[1746027245334,0.28782519,1769.1,1768.5,0.414]
[1746027245535,7.05318039,1769.5,1768.7,0.414]
[1746027245751,0.28845052,1769.6,1768.9,0.414]
[1746027245959,0.8188,1769.7,1769.0,5.04]
[1746027246252,6.23438039,1769.5,1769.0,5.04]
[1746027246453,6.6618501,1769.5,1769.0,5.04]
[1746027246656,7.62803511,1769.5,1769.0,5.04]
[1746027247219,0.7852,1769.3,1769.0,5.04]
[1746027249965,3.0,1769.4,1768.7,6.06158492]
[1746027250152,3.05000015,1769.4,1768.7,6.00505321]
[1746027250328,3.0,1769.4,1768.7,6.00505321]
[1746027250528,4.06280351,1769.4,1768.8,0.60050532]
[1746027250955,0.31644244,1769.3,1768.8,0.60050532]
[1746027251140,0.31644244,1769.3,1768.9,0.47053191]
[1746027251363,0.31644244,1769.3,1768.9,0.414]
[1746027251851,0.31644244,1769.3,1769.0,0.05652455]
[1746027252027,0.28296462,1769.6,1768.9,6.584]
[1746027252229,0.05000015,1769.8,1769.1,0.964]
[1746027252563,0.27737256,1770.6,1769.6,0.414]
[1746027252769,0.27737256,1770.6,1769.7,5.51048953]
[1746027252976,0.27737256,1770.6,1769.7,5.454]
[1746027252977,6.23438039,1770.5,1769.7,5.454]
[1746027253140,3.0,1770.4,1769.7,5.454]
[1746027253764,6.23438039,1770.5,1769.7,5.454]
[1746027253933,3.0,1770.4,1769.7,5.454]
[1746027254334,3.0,1770.4,1769.8,0.05649672]
[1746027254570,3.0,1770.4,1769.8,0.55104967]
[1746027254755,6.65167003,1770.5,1769.8,0.55104967]
[1746027255128,6.65167003,1770.5,1769.9,0.05649383]
[1746027255334,6.23438039,1770.5,1770.0,0.414]
[1746027256039,6.28438054,1770.5,1770.0,0.414]
[1746027256247,6.23438039,1770.5,1769.8,0.96504967]
[1746027256762,6.6566292,1770.5,1769.8,0.96504967]
[1746027257130,6.23438039,1770.5,1769.8,0.96504967]
[1746027258445,6.23438039,1770.5,1769.9,0.05649129]
[1746027258870,6.23438039,1770.5,1769.8,0.96504967]
[1746027259236,6.28438054,1770.5,1769.8,0.96504967]
[1746027259464,6.23438039,1770.5,1769.8,0.96504967]
[1746027259680,3.0,1770.4,1769.8,0.96504967]
[1746027260167,3.0,1770.4,1769.8,1.02154162]
[1746027260965,3.0,1770.4,1769.8,0.96504967]
[1746027261170,3.0,1770.4,1769.8,7.13504967]
[1746027261377,3.0,1770.4,1769.8,6.584]
[1746027263967,6.65701125,1770.5,1769.7,5.04]
[1746027263968,6.64303349,1770.2,1769.7,5.04]
[1746027264337,0.4086531,1770.2,1769.7,5.04]
[1746027266281,0.4086531,1770.2,1769.7,5.09649739]
[1746027266633,0.4086531,1770.2,1769.7,5.04]
[1746027266839,0.4086531,1770.2,1769.7,5.59104974]
[1746027267565,6.22055105,1770.0,1769.7,5.04]
[1746027268563,0.8014,1770.1,1769.7,5.04]
[1746027268770,3.8014,1770.1,1769.7,5.04]
[1746027269700,4.0978514,1770.1,1769.7,5.04]
[1746027270492,0.8253,1769.6,1769.2,5.038]
[1746027270693,3.2964514,1769.7,1769.3,0.5038]
[1746027271000,0.2964514,1769.7,1769.3,0.5038]
[1746027271165,0.2964514,1769.7,1769.3,6.8038]
[1746027271370,0.2964514,1769.7,1769.4,0.05650758]
[1746027271600,0.2964514,1769.7,1769.5,0.414]
[1746027272199,7.02695105,1770.9,1769.9,0.414]
[1746027272366,7.02695105,1770.9,1770.0,5.038]
[1746027272367,6.22055105,1770.7,1770.0,5.038]
[1746027272569,6.22055105,1770.7,1770.1,0.05648393]
[1746027272768,6.22055105,1770.7,1770.1,0.56593232]
[1746027273081,6.22055105,1770.7,1770.1,6.86593232]
[1746027273272,0.28562382,1771.0,1770.2,0.414]
[1746027273469,6.22055105,1770.9,1770.2,0.47047527]
[1746027273666,0.42388423,1770.9,1770.2,0.47047527]
[1746027273895,0.74152519,1770.9,1770.3,6.3]
[1746027274078,0.74152519,1770.9,1770.4,5.108]
[1746027274276,6.99136762,1771.0,1770.4,5.108]
[1746027274277,6.99136762,1771.0,1770.4,5.16447789]
[1746027274607,0.7767,1771.0,1770.5,0.414]
[1746027274971,0.71364194,1771.2,1770.6,6.3564699]
[1746027275279,0.7707,1771.3,1770.6,6.3564699]
[1746027275598,1.14777,1771.3,1770.7,0.63564699]
[1746027275777,6.21466762,1771.2,1770.7,5.107]
[1746027276179,0.05500015,1771.3,1770.8,0.414]
[1746027276379,0.005,1771.3,1771.0,0.414]
[1746027276601,0.005,1771.3,1771.1,5.107]
[1746027276803,0.005,1771.3,1771.2,6.3]
[1746027277106,0.005,1771.3,1771.2,7.32045293]
[1746027277309,0.005,1771.3,1771.2,10.264]
[1746027277465,0.005,1771.3,1771.2,9.77043456]
[1746027277891,0.005,1771.3,1771.2,10.32043456]
[1746027278697,0.005,1771.3,1771.2,10.7519034]
[1746027279077,0.005,1771.3,1771.2,10.32043456]
[1746027279529,0.005,1771.3,1771.2,6.77043456]
[1746027280370,0.005,1771.3,1771.2,6.714]
[1746027280607,0.005,1771.3,1771.2,6.77044646]
[1746027281923,0.005,1771.3,1771.2,16.49044646]
[1746027282086,0.005,1771.3,1771.2,16.434]
[1746027283785,0.005,1771.3,1771.2,16.53723912]
[1746027285122,0.29578681,1771.5,1771.4,0.55]
[1746027285415,0.7722,1773.1,1771.5,3.55]
[1746027285616,6.21466762,1773.0,1771.7,3.55]
[1746027285794,0.8323,1772.8,1771.8,11.559]
[1746027286126,0.8323,1772.8,1772.0,0.55]
[1746027286414,0.8323,1772.8,1772.2,0.3182]
[1746027286623,0.8323,1772.8,1772.3,5.103]
[1746027286780,0.8323,1772.8,1772.4,6.1]
[1746027286980,1.27767668,1772.8,1772.4,6.1]
[1746027287200,0.8323,1772.8,1772.4,6.1]
[1746027288616,0.4297299,1773.1,1772.4,6.1]
[1746027288617,0.404647,1773.3,1772.5,0.3183]
[1746027288818,0.404647,1773.3,1772.6,0.05639475]
[1746027289025,0.404647,1773.3,1772.7,5.103]
[1746027289319,6.21466762,1773.0,1772.7,5.103]
[1746027289482,0.815,1772.9,1772.7,5.103]
[1746027290107,4.23676609,1772.9,1772.7,5.103]
[1746027290307,4.23676609,1772.9,1772.3,6.1]
[1746027290506,4.23676609,1772.9,1772.4,5.102]
[1746027290708,0.42367661,1772.8,1772.4,5.102]
[1746027291017,0.42367661,1772.8,1772.4,5.097]
[1746027291226,5.79351791,1773.3,1771.8,3.55]
[1746027291227,0.5,1774.0,1772.7,0.55]
[1746027291530,0.5,1774.0,1773.0,0.55]
[1746027291689,0.5,1774.0,1773.2,0.55]
[1746027291882,0.5,1774.0,1773.4,3.0]
[1746027292121,0.5,1774.0,1773.5,0.35636684]
[1746027292332,0.5,1774.0,1773.7,0.55]
[1746027292489,0.45,1774.0,1773.9,3.55]
[1746027292693,0.4,1774.0,1773.8,5.8113]
[1746027293019,0.4,1774.0,1773.8,5.86765456]
[1746027293223,0.4,1774.0,1773.9,6.25]
[1746027293521,0.4,1774.0,1773.9,5.7]
[1746027294018,0.4,1774.0,1773.9,6.25]
[1746027294228,0.4,1774.0,1773.9,5.7]
[1746027294520,0.4,1774.0,1773.9,9.0183]
[1746027294721,0.4,1774.0,1773.9,9.07465574]
[1746027295024,0.4,1774.0,1773.9,5.7]
[1746027295234,0.4,1774.0,1773.9,8.08142117]
[1746027295398,0.4,1774.0,1773.9,9.6246556]
[1746027295604,1.223447,1775.0,1774.0,3.55]
[1746027295796,4.223447,1775.0,1774.0,3.55]
[1746027295990,1.173447,1775.0,1774.2,0.55]
[1746027296225,1.173447,1775.0,1774.3,5.54733917]
[1746027296396,1.173447,1775.0,1774.4,0.87303392]
[1746027296598,1.173447,1775.0,1774.5,0.05633782]
[1746027297001,1.173447,1775.0,1774.4,0.92937099]
[1746027297237,1.173447,1775.0,1774.4,0.37463707]
[1746027297419,3.0,1774.6,1773.9,2.98389859]
[1746027297620,6.21466762,1774.7,1773.9,5.491]
[1746027297621,6.21466762,1774.4,1773.9,5.491]
[1746027299515,0.7783,1774.0,1773.1,0.3183]
[1746027299843,3.0,1774.5,1773.3,0.3183]
[1746027299998,3.0,1774.5,1773.6,0.55]
[1746027300201,3.0,1774.5,1773.5,3.3183]